[Event "Titled Tuesday Blitz February 14 Late 2023"]
[White "Kanyamarala, Trisha"]
[Black "Stanisz, Patryk"]
[WhiteFideId "45004722"]
[BlackFideId "1123106"]
[WhiteElo "2278"]
[BlackElo "2161"]
[Result "1-0"]
[Round "04"]
[TimeControl "180+2"]
[Date "2023.02.14"]
[WhiteClock "0:00:08"]
[BlackClock "0:00:04"]

1. c4 {[%clk 0:02:59]}  Nf6 {[%clk 0:02:58]} 2. Nc3 {[%clk 0:02:59]}  c6 {[%clk 0:02:59]} 3. e4 {[%clk 0:02:49]}  d5 {[%clk 0:02:59]} 4. e5 {[%clk 0:02:49]}  Ne4 {[%clk 0:02:59]} 5. Nxe4 {[%clk 0:02:48]}  dxe4 {[%clk 0:03:00]} 6. d4 {[%clk 0:02:39]}  exd3 {[%clk 0:02:59]} 7. Bxd3 {[%clk 0:02:39]}  g6 {[%clk 0:02:51]} 8. Nf3 {[%clk 0:02:38]}  Bg7 {[%clk 0:02:49]} 9. O-O {[%clk 0:02:38]}  O-O {[%clk 0:02:50]} 10. h3 {[%clk 0:02:38]}  h6 {[%clk 0:02:30]} 11. Bf4 {[%clk 0:02:36]}  Be6 {[%clk 0:02:30]} 12. Qc2 {[%clk 0:02:35]}  Na6 {[%clk 0:02:28]} 13. a3 {[%clk 0:02:31]}  Nc5 {[%clk 0:02:27]} 14. Be2 {[%clk 0:02:30]}  Bf5 {[%clk 0:02:27]} 15. Qc3 {[%clk 0:02:27]}  g5 {[%clk 0:02:06]} 16. Bh2 {[%clk 0:02:15]}  Ne6 {[%clk 0:01:49]} 17. Rfd1 {[%clk 0:02:10]}  Qb6 {[%clk 0:01:48]} 18. Rac1 {[%clk 0:01:57]}  Rad8 {[%clk 0:01:46]} 19. c5 {[%clk 0:01:48]}  Qc7 {[%clk 0:01:36]} 20. b4 {[%clk 0:01:45]}  Rxd1+ {[%clk 0:01:34]} 21. Rxd1 {[%clk 0:01:44]}  Rd8 {[%clk 0:01:34]} 22. Qc1 {[%clk 0:01:37]}  a5 {[%clk 0:01:29]} 23. Bc4 {[%clk 0:01:36]}  axb4 {[%clk 0:01:11]} 24. axb4 {[%clk 0:01:36]}  g4 {[%clk 0:00:34]} 25. Nh4 {[%clk 0:01:25]}  Bh7 {[%clk 0:00:34]} 26. hxg4 {[%clk 0:01:19]}  Nd4 {[%clk 0:00:31]} 27. e6 {[%clk 0:01:11]}  Qc8 {[%clk 0:00:20]} 28. exf7+ {[%clk 0:01:10]}  Kf8 {[%clk 0:00:21]} 29. Re1 {[%clk 0:01:03]}  Qxg4 {[%clk 0:00:18]} 30. Bg3 {[%clk 0:00:54]}  e6 {[%clk 0:00:10]} 31. Qe3 {[%clk 0:00:41]}  Bf5 {[%clk 0:00:09]} 32. Nxf5 {[%clk 0:00:38]}  Qxf5 {[%clk 0:00:08]} 33. Bd6+ {[%clk 0:00:37]}  Kxf7 {[%clk 0:00:08]} 34. Qg3 {[%clk 0:00:28]}  Re8 {[%clk 0:00:08]} 35. Bd3 {[%clk 0:00:25]}  Qf6 {[%clk 0:00:07]} 36. Be5 {[%clk 0:00:24]}  Qg5 {[%clk 0:00:06]} 37. Qxg5 {[%clk 0:00:15]}  hxg5 {[%clk 0:00:06]} 38. Bd6 {[%clk 0:00:14]}  Bf6 {[%clk 0:00:06]} 39. f3 {[%clk 0:00:13]}  e5 {[%clk 0:00:06]} 40. Bc4+ {[%clk 0:00:12]}  Kg6 {[%clk 0:00:06]} 41. Kf2 {[%clk 0:00:12]}  Kg7 {[%clk 0:00:06]} 42. Rh1 {[%clk 0:00:11]}  Ra8 {[%clk 0:00:06]} 43. Bd3 {[%clk 0:00:10]}  Rh8 {[%clk 0:00:06]} 44. Ra1 {[%clk 0:00:09]}  Re8 {[%clk 0:00:05]} 45. Ra7 {[%clk 0:00:09]}  Kg8 {[%clk 0:00:02]} 46. Rxb7 {[%clk 0:00:09]}  Nb3 {[%clk 0:00:02]} 47. Bc4+ {[%clk 0:00:08]}  Kh8 {[%clk 0:00:02]} 48. Bxb3 {[%clk 0:00:09]}  Bg7 {[%clk 0:00:03]} 49. Bc2 {[%clk 0:00:09]}  Ra8 {[%clk 0:00:03]} 50. Be4 {[%clk 0:00:09]}  Ra2+ {[%clk 0:00:04]} 51. Kg3 {[%clk 0:00:09]}  g4 {[%clk 0:00:04]} 52. Rb8+ {[%clk 0:00:09]}  Bf8 {[%clk 0:00:04]} 53. Rxf8+ {[%clk 0:00:09]}  Kg7 {[%clk 0:00:05]} 54. Rf5 {[%clk 0:00:09]}  gxf3 {[%clk 0:00:04]} 55. Rg5+ {[%clk 0:00:10]}  Kf6 {[%clk 0:00:04]} 56. Rg6+ {[%clk 0:00:10]}  Kf7 {[%clk 0:00:05]} 57. gxf3 {[%clk 0:00:10]}  Rb2 {[%clk 0:00:05]} 58. Rh6 {[%clk 0:00:10]}  Rxb4 {[%clk 0:00:05]} 59. Rh7+ {[%clk 0:00:09]}  Ke6 {[%clk 0:00:05]} 60. Rc7 {[%clk 0:00:08]}  Ra4 {[%clk 0:00:03]} 61. Bxc6 {[%clk 0:00:08]}  Kf5 {[%clk 0:00:03]} 62. Bd7+ {[%clk 0:00:08]}  Kg5 {[%clk 0:00:03]} 63. Bxa4 {[%clk 0:00:09]}  Kh5 {[%clk 0:00:04]} 64. c6 {[%clk 0:00:08]}  e4 {[%clk 0:00:05]} 65. Re7 {[%clk 0:00:08]}  exf3 {[%clk 0:00:05]} 66. Kxf3 {[%clk 0:00:09]}  Kg6 {[%clk 0:00:05]} 67. Rg7+ {[%clk 0:00:09]}  Kf6 {[%clk 0:00:06]} 68. c7 {[%clk 0:00:09]}  Kxg7 {[%clk 0:00:06]} 69. Be5+ {[%clk 0:00:09]}  Kh7 {[%clk 0:00:04]} 70. c8=Q {[%clk 0:00:09]}  Kg6 {[%clk 0:00:04]} 71. Qe6+ {[%clk 0:00:09]}  Kh5 {[%clk 0:00:04]} 72. Qf5+ {[%clk 0:00:09]}  Kh6 {[%clk 0:00:05]} 73. Qf6+ {[%clk 0:00:09]}  Kh5 {[%clk 0:00:04]} 74. Be8# {[%clk 0:00:08]} 1-0


[Site "https://www.chess.com"]

[Event "Titled Tuesday Blitz February 14 Late 2023"]
[White "Georg, Heinz"]
[Black "Rodrigues, Tiago Pereira"]
[WhiteFideId "4607295"]
[BlackFideId "2101203"]
[WhiteElo "2107"]
[BlackElo "2155"]
[Result "1/2-1/2"]
[Round "04"]
[TimeControl "180+2"]
[Date "2023.02.14"]
[WhiteClock "0:00:02"]
[BlackClock "0:00:41"]

1. e4 {[%clk 0:02:59]}  c5 {[%clk 0:03:00]} 2. Nf3 {[%clk 0:02:59]}  a6 {[%clk 0:03:00]} 3. c4 {[%clk 0:02:57]}  d6 {[%clk 0:03:01]} 4. Nc3 {[%clk 0:02:58]}  Bg4 {[%clk 0:03:01]} 5. Be2 {[%clk 0:02:56]}  Nc6 {[%clk 0:03:01]} 6. d3 {[%clk 0:02:56]}  g6 {[%clk 0:03:01]} 7. Be3 {[%clk 0:02:55]}  Bg7 {[%clk 0:03:01]} 8. O-O {[%clk 0:02:55]}  Nf6 {[%clk 0:03:01]} 9. d4 {[%clk 0:02:53]}  Bxf3 {[%clk 0:03:00]} 10. Bxf3 {[%clk 0:02:48]}  cxd4 {[%clk 0:03:01]} 11. Bxd4 {[%clk 0:02:49]}  Nxd4 {[%clk 0:03:00]} 12. Qxd4 {[%clk 0:02:48]}  O-O {[%clk 0:03:01]} 13. Qd3 {[%clk 0:02:48]}  Nd7 {[%clk 0:03:01]} 14. Rac1 {[%clk 0:02:44]}  Rc8 {[%clk 0:03:00]} 15. b3 {[%clk 0:02:42]}  Re8 {[%clk 0:03:00]} 16. Nd5 {[%clk 0:02:40]}  e6 {[%clk 0:02:59]} 17. Ne3 {[%clk 0:02:26]}  Qc7 {[%clk 0:02:54]} 18. g3 {[%clk 0:02:22]}  h5 {[%clk 0:02:54]} 19. h4 {[%clk 0:02:20]}  Ne5 {[%clk 0:02:51]} 20. Qe2 {[%clk 0:02:20]}  Red8 {[%clk 0:02:50]} 21. Bg2 {[%clk 0:02:16]}  Qa5 {[%clk 0:02:49]} 22. f4 {[%clk 0:02:14]}  Nc6 {[%clk 0:02:49]} 23. f5 {[%clk 0:02:11]}  Ne5 {[%clk 0:02:48]} 24. Bh3 {[%clk 0:01:57]}  Re8 {[%clk 0:02:48]} 25. fxg6 {[%clk 0:01:55]}  fxg6 {[%clk 0:02:47]} 26. Rcd1 {[%clk 0:01:48]}  Qc5 {[%clk 0:02:47]} 27. Kh1 {[%clk 0:01:44]}  Qc6 {[%clk 0:02:45]} 28. Ng2 {[%clk 0:01:38]}  Re7 {[%clk 0:02:42]} 29. Nf4 {[%clk 0:01:37]}  Rce8 {[%clk 0:02:42]} 30. Kh2 {[%clk 0:01:33]}  Bh6 {[%clk 0:02:35]} 31. Nd3 {[%clk 0:01:10]}  Bg7 {[%clk 0:02:31]} 32. Nf4 {[%clk 0:01:05]}  Kh7 {[%clk 0:02:22]} 33. g4 {[%clk 0:00:50]}  hxg4 {[%clk 0:02:19]} 34. Bxg4 {[%clk 0:00:50]}  Nxg4+ {[%clk 0:02:14]} 35. Qxg4 {[%clk 0:00:50]}  Qxe4 {[%clk 0:02:14]} 36. h5 {[%clk 0:00:43]}  gxh5 {[%clk 0:02:13]} 37. Qxh5+ {[%clk 0:00:42]}  Kg8 {[%clk 0:02:13]} 38. Ng6 {[%clk 0:00:38]}  Be5+ {[%clk 0:01:43]} 39. Nxe5 {[%clk 0:00:38]}  Qxe5+ {[%clk 0:01:43]} 40. Qxe5 {[%clk 0:00:37]}  dxe5 {[%clk 0:01:44]} 41. Rg1+ {[%clk 0:00:33]}  Kh7 {[%clk 0:01:42]} 42. Rg5 {[%clk 0:00:33]}  Rf8 {[%clk 0:01:35]} 43. Rdg1 {[%clk 0:00:31]}  Rf5 {[%clk 0:01:30]} 44. R5g4 {[%clk 0:00:20]}  Rh5+ {[%clk 0:01:28]} 45. Kg3 {[%clk 0:00:20]}  Rg7 {[%clk 0:01:24]} 46. Kf3 {[%clk 0:00:18]}  Rxg4 {[%clk 0:01:16]} 47. Kxg4 {[%clk 0:00:18]}  Kg6 {[%clk 0:01:15]} 48. Rd1 {[%clk 0:00:16]}  Rh2 {[%clk 0:01:10]} 49. Rd7 {[%clk 0:00:11]}  b5 {[%clk 0:01:10]} 50. cxb5 {[%clk 0:00:09]}  axb5 {[%clk 0:01:11]} 51. a4 {[%clk 0:00:09]}  bxa4 {[%clk 0:01:09]} 52. bxa4 {[%clk 0:00:09]}  Ra2 {[%clk 0:01:08]} 53. Ra7 {[%clk 0:00:09]}  Kf6 {[%clk 0:01:07]} 54. a5 {[%clk 0:00:08]}  Ra4+ {[%clk 0:01:01]} 55. Kf3 {[%clk 0:00:07]}  e4+ {[%clk 0:00:57]} 56. Kf4 {[%clk 0:00:07]}  e5+ {[%clk 0:00:55]} 57. Ke3 {[%clk 0:00:07]}  Ke6 {[%clk 0:00:54]} 58. a6 {[%clk 0:00:05]}  Kf5 {[%clk 0:00:51]} 59. Rf7+ {[%clk 0:00:04]}  Ke6 {[%clk 0:00:51]} 60. Ra7 {[%clk 0:00:04]}  Kd6 {[%clk 0:00:52]} 61. Ra8 {[%clk 0:00:04]}  Kc7 {[%clk 0:00:47]} 62. Re8 {[%clk 0:00:03]}  Kd6 {[%clk 0:00:44]} 63. Ra8 {[%clk 0:00:03]}  Kc6 {[%clk 0:00:43]} 64. Re8 {[%clk 0:00:02]}  Rxa6 {[%clk 0:00:40]} 65. Re6+ {[%clk 0:00:01]}  Kb5 {[%clk 0:00:40]} 66. Rxa6 {[%clk 0:00:01]}  Kxa6 {[%clk 0:00:40]} 67. Kxe4 {[%clk 0:00:02]}  Kb6 {[%clk 0:00:41]} 68. Kxe5 {[%clk 0:00:02]} 1/2-1/2


[Site "https://www.chess.com"]

[Event "Titled Tuesday Blitz February 14 Late 2023"]
[White "Golubev, Mikhail"]
[Black "Cueto, Jonny"]
[WhiteFideId "14100983"]
[BlackFideId "3300145"]
[WhiteElo "2461"]
[BlackElo "2122"]
[Result "0-1"]
[Round "04"]
[TimeControl "180+2"]
[Date "2023.02.14"]
[WhiteClock "0:00:03"]
[BlackClock "0:01:11"]

1. e4 {[%clk 0:03:00]}  e6 {[%clk 0:02:58]} 2. d4 {[%clk 0:03:00]}  d5 {[%clk 0:02:59]} 3. Nc3 {[%clk 0:03:00]}  Nf6 {[%clk 0:02:59]} 4. e5 {[%clk 0:03:00]}  Nfd7 {[%clk 0:03:00]} 5. f4 {[%clk 0:03:00]}  c5 {[%clk 0:03:00]} 6. Nf3 {[%clk 0:03:01]}  Nc6 {[%clk 0:03:01]} 7. Be3 {[%clk 0:03:01]}  Be7 {[%clk 0:03:01]} 8. Qd2 {[%clk 0:02:58]}  O-O {[%clk 0:03:01]} 9. Qf2 {[%clk 0:02:41]}  a6 {[%clk 0:02:53]} 10. dxc5 {[%clk 0:02:37]}  Qa5 {[%clk 0:02:52]} 11. O-O-O {[%clk 0:02:02]}  b5 {[%clk 0:02:37]} 12. Kb1 {[%clk 0:01:47]}  b4 {[%clk 0:02:31]} 13. Nxd5 {[%clk 0:01:41]}  exd5 {[%clk 0:02:29]} 14. Rxd5 {[%clk 0:01:42]}  b3 {[%clk 0:01:53]} 15. a3 {[%clk 0:00:37]}  Nb4 {[%clk 0:01:38]} 16. axb4 {[%clk 0:00:23]}  Qa2+ {[%clk 0:01:37]} 17. Kc1 {[%clk 0:00:23]}  Qa1+ {[%clk 0:01:38]} 18. Kd2 {[%clk 0:00:23]}  Qxb2 {[%clk 0:01:38]} 19. Bd3 {[%clk 0:00:21]}  bxc2 {[%clk 0:01:34]} 20. Bxc2 {[%clk 0:00:12]}  Qxb4+ {[%clk 0:01:34]} 21. Kc1 {[%clk 0:00:10]}  a5 {[%clk 0:01:27]} 22. Rhd1 {[%clk 0:00:08]}  a4 {[%clk 0:01:18]} 23. R1d4 {[%clk 0:00:03]}  Qb5 {[%clk 0:01:11]} 0-1


[Site "https://www.chess.com"]

[Event "Titled Tuesday Blitz February 14 Late 2023"]
[White "Sonnenschein, Philipp"]
[Black "Onslow, Alfie"]
[WhiteFideId "16250877"]
[BlackFideId "436976"]
[WhiteElo "2224"]
[BlackElo "2157"]
[Result "1-0"]
[Round "04"]
[TimeControl "180+2"]
[Date "2023.02.14"]
[WhiteClock "0:01:19"]
[BlackClock "0:00:31"]

1. e4 {[%clk 0:03:00]}  c5 {[%clk 0:02:59]} 2. Nf3 {[%clk 0:03:00]}  Nc6 {[%clk 0:02:59]} 3. Bb5 {[%clk 0:03:00]}  e5 {[%clk 0:02:57]} 4. O-O {[%clk 0:02:57]}  Bd6 {[%clk 0:02:57]} 5. d4 {[%clk 0:02:57]}  cxd4 {[%clk 0:02:53]} 6. c3 {[%clk 0:02:56]}  a6 {[%clk 0:02:22]} 7. Bxc6 {[%clk 0:02:35]}  dxc6 {[%clk 0:02:16]} 8. cxd4 {[%clk 0:02:35]}  exd4 {[%clk 0:02:12]} 9. Qxd4 {[%clk 0:02:35]}  Bc7 {[%clk 0:01:45]} 10. Qxg7 {[%clk 0:02:29]}  Qf6 {[%clk 0:01:46]} 11. Bh6 {[%clk 0:02:05]}  Qxh6 {[%clk 0:01:15]} 12. Qxh8 {[%clk 0:02:05]}  Qg6 {[%clk 0:01:13]} 13. Ne5 {[%clk 0:01:46]}  Bxe5 {[%clk 0:01:04]} 14. Qxe5+ {[%clk 0:01:45]}  Be6 {[%clk 0:01:05]} 15. Rd1 {[%clk 0:01:37]}  Ne7 {[%clk 0:01:03]} 16. Nc3 {[%clk 0:01:34]}  Bg4 {[%clk 0:00:43]} 17. Rd3 {[%clk 0:01:28]}  Kf8 {[%clk 0:00:40]} 18. h3 {[%clk 0:01:20]}  Be6 {[%clk 0:00:37]} 19. Rg3 {[%clk 0:01:20]}  Qh6 {[%clk 0:00:31]} 20. Qh8+ {[%clk 0:01:19]} 1-0


[Site "https://www.chess.com"]

[Event "Titled Tuesday Blitz February 14 Late 2023"]
[White "Womacka, Mathias"]
[Black "Mendez Machado, Andre"]
[WhiteFideId "4611390"]
[BlackFideId "6603793"]
[WhiteElo "2396"]
[BlackElo "1974"]
[Result "1-0"]
[Round "04"]
[TimeControl "180+2"]
[Date "2023.02.14"]
[WhiteClock "0:00:36"]
[BlackClock "0:00:01"]

1. e4 {[%clk 0:03:00]}  e5 {[%clk 0:02:59]} 2. Nf3 {[%clk 0:03:00]}  Nc6 {[%clk 0:03:00]} 3. Bb5 {[%clk 0:02:59]}  a6 {[%clk 0:02:59]} 4. Bxc6 {[%clk 0:02:59]}  dxc6 {[%clk 0:03:00]} 5. O-O {[%clk 0:02:59]}  Bg4 {[%clk 0:03:00]} 6. h3 {[%clk 0:02:57]}  h5 {[%clk 0:03:01]} 7. d3 {[%clk 0:02:57]}  Qf6 {[%clk 0:02:59]} 8. Nbd2 {[%clk 0:02:58]}  g5 {[%clk 0:02:59]} 9. Nc4 {[%clk 0:02:56]}  Bxf3 {[%clk 0:02:47]} 10. Qxf3 {[%clk 0:02:57]}  Qxf3 {[%clk 0:02:47]} 11. gxf3 {[%clk 0:02:58]}  f6 {[%clk 0:02:48]} 12. Be3 {[%clk 0:02:57]}  c5 {[%clk 0:02:11]} 13. Rfd1 {[%clk 0:02:56]}  O-O-O {[%clk 0:02:01]} 14. c3 {[%clk 0:02:53]}  Ne7 {[%clk 0:01:12]} 15. Bxc5 {[%clk 0:02:44]}  Ng6 {[%clk 0:01:12]} 16. Be3 {[%clk 0:02:43]}  Nh4 {[%clk 0:01:03]} 17. Kf1 {[%clk 0:02:40]}  Nxf3 {[%clk 0:01:02]} 18. Ke2 {[%clk 0:02:40]}  Nh4 {[%clk 0:00:58]} 19. d4 {[%clk 0:02:37]}  exd4 {[%clk 0:00:47]} 20. Bxd4 {[%clk 0:02:34]}  Bg7 {[%clk 0:00:40]} 21. Ne3 {[%clk 0:02:24]}  Rhe8 {[%clk 0:00:36]} 22. f3 {[%clk 0:02:22]}  b6 {[%clk 0:00:28]} 23. b4 {[%clk 0:02:16]}  Bh8 {[%clk 0:00:25]} 24. Kf2 {[%clk 0:02:07]}  Ng6 {[%clk 0:00:20]} 25. Nd5 {[%clk 0:02:01]}  Re6 {[%clk 0:00:16]} 26. a4 {[%clk 0:01:53]}  Ne5 {[%clk 0:00:15]} 27. Ne3 {[%clk 0:01:35]}  Nc6 {[%clk 0:00:15]} 28. b5 {[%clk 0:01:25]}  Nxd4 {[%clk 0:00:15]} 29. cxd4 {[%clk 0:01:24]}  Red6 {[%clk 0:00:13]} 30. Nf5 {[%clk 0:01:22]}  Re6 {[%clk 0:00:11]} 31. d5 {[%clk 0:01:12]}  Re5 {[%clk 0:00:10]} 32. bxa6 {[%clk 0:01:12]}  Kb8 {[%clk 0:00:10]} 33. a5 {[%clk 0:01:06]}  bxa5 {[%clk 0:00:08]} 34. Rxa5 {[%clk 0:01:03]}  g4 {[%clk 0:00:09]} 35. hxg4 {[%clk 0:00:59]}  hxg4 {[%clk 0:00:10]} 36. Rb1+ {[%clk 0:00:58]}  Ka8 {[%clk 0:00:09]} 37. Rb7 {[%clk 0:00:56]}  gxf3 {[%clk 0:00:08]} 38. Kxf3 {[%clk 0:00:56]}  Rde8 {[%clk 0:00:07]} 39. Ra4 {[%clk 0:00:49]}  Rc8 {[%clk 0:00:04]} 40. Rc4 {[%clk 0:00:46]}  c5 {[%clk 0:00:03]} 41. Nd6 {[%clk 0:00:37]}  Rd8 {[%clk 0:00:02]} 42. Nb5 {[%clk 0:00:37]}  f5 {[%clk 0:00:01]} 43. Nc7# {[%clk 0:00:36]} 1-0


[Site "https://www.chess.com"]

[Event "Titled Tuesday Blitz February 14 Late 2023"]
[White "Gutkin, Ilya"]
[Black "Wang, Alexander J"]
[WhiteFideId "16203470"]
[BlackFideId "30955270"]
[WhiteElo "2273"]
[BlackElo "1815"]
[Result "1-0"]
[Round "04"]
[TimeControl "180+2"]
[Date "2023.02.14"]
[WhiteClock "0:00:54"]
[BlackClock "0:00:23"]

1. e4 {[%clk 0:03:00]}  c5 {[%clk 0:02:59]} 2. Nf3 {[%clk 0:03:01]}  d6 {[%clk 0:02:59]} 3. Bb5+ {[%clk 0:03:01]}  Bd7 {[%clk 0:02:58]} 4. Bxd7+ {[%clk 0:03:02]}  Qxd7 {[%clk 0:02:59]} 5. c4 {[%clk 0:03:01]}  Nf6 {[%clk 0:02:53]} 6. Nc3 {[%clk 0:02:59]}  Nc6 {[%clk 0:02:51]} 7. d4 {[%clk 0:02:56]}  cxd4 {[%clk 0:02:48]} 8. Nxd4 {[%clk 0:02:57]}  g6 {[%clk 0:02:46]} 9. O-O {[%clk 0:02:56]}  Bg7 {[%clk 0:02:46]} 10. f3 {[%clk 0:02:56]}  O-O {[%clk 0:02:42]} 11. Be3 {[%clk 0:02:55]}  Rac8 {[%clk 0:02:36]} 12. b3 {[%clk 0:02:51]}  e6 {[%clk 0:02:35]} 13. Rc1 {[%clk 0:02:28]}  Ne5 {[%clk 0:01:59]} 14. Ndb5 {[%clk 0:02:16]}  a6 {[%clk 0:01:42]} 15. Nxd6 {[%clk 0:01:48]}  Rc6 {[%clk 0:01:18]} 16. c5 {[%clk 0:01:47]}  b6 {[%clk 0:01:17]} 17. Bd4 {[%clk 0:01:20]}  Ne8 {[%clk 0:01:01]} 18. f4 {[%clk 0:00:58]}  Nxd6 {[%clk 0:00:29]} 19. Bxe5 {[%clk 0:00:57]}  bxc5 {[%clk 0:00:22]} 20. Bxg7 {[%clk 0:00:55]}  Kxg7 {[%clk 0:00:23]} 21. e5 {[%clk 0:00:54]} 1-0


[Site "https://www.chess.com"]

[Event "Titled Tuesday Blitz February 14 Late 2023"]
[White "mestrefeitosa19"]
[Black "Bouget, Alexandre"]
[BlackFideId "681318"]
[WhiteElo "2187"]
[BlackElo "2267"]
[Result "0-1"]
[Round "04"]
[TimeControl "180+2"]
[Date "2023.02.14"]
[WhiteClock "0:00:04"]
[BlackClock "0:00:17"]

1. c4 {[%clk 0:03:00]}  c5 {[%clk 0:02:55]} 2. Nc3 {[%clk 0:03:01]}  Nc6 {[%clk 0:02:54]} 3. Nf3 {[%clk 0:03:02]}  g6 {[%clk 0:02:53]} 4. e3 {[%clk 0:03:02]}  Bg7 {[%clk 0:02:52]} 5. d4 {[%clk 0:03:03]}  cxd4 {[%clk 0:02:51]} 6. exd4 {[%clk 0:03:04]}  d6 {[%clk 0:02:50]} 7. Be2 {[%clk 0:03:05]}  Bg4 {[%clk 0:02:43]} 8. d5 {[%clk 0:03:05]}  Bxf3 {[%clk 0:02:42]} 9. Bxf3 {[%clk 0:03:06]}  Ne5 {[%clk 0:02:42]} 10. O-O {[%clk 0:03:06]}  Nxf3+ {[%clk 0:02:38]} 11. Qxf3 {[%clk 0:03:06]}  Nf6 {[%clk 0:02:39]} 12. Re1 {[%clk 0:03:02]}  O-O {[%clk 0:02:37]} 13. Bg5 {[%clk 0:02:58]}  Rc8 {[%clk 0:02:34]} 14. b3 {[%clk 0:02:40]}  h6 {[%clk 0:02:34]} 15. Bd2 {[%clk 0:01:59]}  Nd7 {[%clk 0:02:31]} 16. Rac1 {[%clk 0:01:56]}  Ne5 {[%clk 0:02:23]} 17. Qh3 {[%clk 0:01:56]}  Kh7 {[%clk 0:02:16]} 18. Ne4 {[%clk 0:01:54]}  f6 {[%clk 0:01:50]} 19. Bc3 {[%clk 0:01:37]}  Qd7 {[%clk 0:01:43]} 20. Qe3 {[%clk 0:01:32]}  f5 {[%clk 0:01:37]} 21. Nd2 {[%clk 0:01:27]}  f4 {[%clk 0:01:37]} 22. Qd4 {[%clk 0:01:23]}  Nf3+ {[%clk 0:01:35]} 23. Nxf3 {[%clk 0:01:19]}  Bxd4 {[%clk 0:01:35]} 24. Nxd4 {[%clk 0:01:18]}  Rf7 {[%clk 0:01:13]} 25. Re6 {[%clk 0:01:15]}  a6 {[%clk 0:01:06]} 26. a4 {[%clk 0:01:15]}  g5 {[%clk 0:00:51]} 27. Rce1 {[%clk 0:01:14]}  f3 {[%clk 0:00:28]} 28. Nxf3 {[%clk 0:01:08]}  b5 {[%clk 0:00:28]} 29. axb5 {[%clk 0:00:52]}  axb5 {[%clk 0:00:29]} 30. R1e4 {[%clk 0:00:43]}  bxc4 {[%clk 0:00:29]} 31. bxc4 {[%clk 0:00:41]}  Qa4 {[%clk 0:00:28]} 32. Nd2 {[%clk 0:00:33]}  Qd1+ {[%clk 0:00:23]} 33. Re1 {[%clk 0:00:33]}  Qc2 {[%clk 0:00:23]} 34. R6e3 {[%clk 0:00:28]}  Kg6 {[%clk 0:00:19]} 35. h3 {[%clk 0:00:28]}  Rcf8 {[%clk 0:00:18]} 36. Re6+ {[%clk 0:00:20]}  Kh7 {[%clk 0:00:17]} 37. R6e5 {[%clk 0:00:04]} 0-1


[Site "https://www.chess.com"]

[Event "Titled Tuesday Blitz February 14 Late 2023"]
[White "Minina, Veronika"]
[Black "Sarkar, Justin"]
[WhiteFideId "4174780"]
[BlackFideId "2010011"]
[WhiteElo "2057"]
[BlackElo "2309"]
[Result "1-0"]
[Round "04"]
[TimeControl "180+2"]
[Date "2023.02.14"]
[WhiteClock "0:00:25"]
[BlackClock "0:00:01"]

1. Nf3 {[%clk 0:03:00]}  Nf6 {[%clk 0:02:41]} 2. g3 {[%clk 0:03:00]}  b6 {[%clk 0:02:34]} 3. Bg2 {[%clk 0:02:59]}  Bb7 {[%clk 0:02:33]} 4. O-O {[%clk 0:02:59]}  e6 {[%clk 0:02:28]} 5. c4 {[%clk 0:02:59]}  d5 {[%clk 0:02:21]} 6. d4 {[%clk 0:02:50]}  Nbd7 {[%clk 0:02:13]} 7. Nbd2 {[%clk 0:02:47]}  Be7 {[%clk 0:02:08]} 8. Qc2 {[%clk 0:02:44]}  O-O {[%clk 0:02:04]} 9. Re1 {[%clk 0:02:37]}  c5 {[%clk 0:01:59]} 10. cxd5 {[%clk 0:02:34]}  Nxd5 {[%clk 0:01:52]} 11. dxc5 {[%clk 0:02:32]}  Nxc5 {[%clk 0:01:50]} 12. a3 {[%clk 0:02:02]}  a5 {[%clk 0:01:47]} 13. Ne4 {[%clk 0:01:59]}  Nb4 {[%clk 0:01:32]} 14. axb4 {[%clk 0:01:51]}  Bxe4 {[%clk 0:01:31]} 15. Qc4 {[%clk 0:01:36]}  axb4 {[%clk 0:01:28]} 16. Rxa8 {[%clk 0:01:33]}  Qxa8 {[%clk 0:01:27]} 17. Qxb4 {[%clk 0:01:21]}  Qa5 {[%clk 0:00:17]} 18. Qxa5 {[%clk 0:01:15]}  bxa5 {[%clk 0:00:16]} 19. Be3 {[%clk 0:01:07]}  Nb3 {[%clk 0:00:15]} 20. Ne5 {[%clk 0:01:02]}  Bxg2 {[%clk 0:00:13]} 21. Kxg2 {[%clk 0:01:03]}  Rc8 {[%clk 0:00:11]} 22. Rd1 {[%clk 0:00:59]}  Bf6 {[%clk 0:00:09]} 23. Nd3 {[%clk 0:00:48]}  Rc2 {[%clk 0:00:08]} 24. Kf1 {[%clk 0:00:32]}  h5 {[%clk 0:00:08]} 25. h4 {[%clk 0:00:25]}  Bxb2 {[%clk 0:00:06]} 26. Nxb2 {[%clk 0:00:26]}  Rxb2 {[%clk 0:00:05]} 27. Rd8+ {[%clk 0:00:27]}  Kh7 {[%clk 0:00:04]} 28. Rd7 {[%clk 0:00:27]}  a4 {[%clk 0:00:03]} 29. Ra7 {[%clk 0:00:25]}  Ra2 {[%clk 0:00:03]} 30. Bf4 {[%clk 0:00:23]}  a3 {[%clk 0:00:02]} 31. Bd6 {[%clk 0:00:24]}  Ra1+ {[%clk 0:00:01]} 32. Kg2 {[%clk 0:00:25]}  a2 {[%clk 0:00:01]} 33. Be5 {[%clk 0:00:25]} 1-0


[Site "https://www.chess.com"]